bitfinex-derivatives/quotes_ETHF0:USTF0_20250624
["timestamp","ask_amount","ask_price","bid_price","bid_amount"]
[1750731163402,3.2078,2399.5,2399.4,8.89]
[1750731163599,0.83288,2399.5,2399.4,8.89]
[1750731163899,0.83286,2399.6,2399.4,8.89]
[1750731164094,3.2078,2399.8,2399.4,8.89]
[1750731164095,2.16973,2399.7,2399.4,8.89]
[1750731164402,4.04059,2399.8,2399.4,9.7229]
[1750731164593,3.2078,2399.8,2399.4,10.2074]
[1750731164798,0.83282,2399.7,2399.4,1.3174]
[1750731165003,0.83282,2399.7,2399.5,8.572]
[1750731165299,4.0406,2399.8,2399.5,9.40488]
[1750731165699,3.2078,2399.8,2399.6,0.83284]
[1750731165902,0.83276,2399.9,2399.6,0.83284]
[1750731166096,4.04049,2400.1,2399.7,0.83279]
[1750731166292,1.18760876,2400.0,2399.7,0.83279]
[1750731166491,3.2078,2400.1,2399.5,11.7798]
[1750731166700,1.18762263,2400.0,2399.8,0.83276]
[1750731166899,4.04049,2400.1,2399.9,8.572]
[1750731167099,1.18824727,2400.0,2399.9,8.572]
[1750731167601,3.2078,2400.1,2399.9,8.572]
[1750731167799,3.2078,2400.1,2399.9,9.40474]
[1750731167994,3.2078,2400.1,2400.0,0.83271]
[1750731168193,3.2078,2400.1,2399.9,8.572]
[1750731168502,4.04049,2400.1,2400.0,8.572]
[1750731169301,0.83269,2400.1,2400.0,8.572]
[1750731169997,1.402,2400.2,2400.0,8.572]
[1750731170199,3.2078,2400.4,2400.0,8.6357515]
[1750731170399,1.18872278,2400.3,2400.0,9.4684415]
[1750731170594,3.2078,2400.4,2400.0,9.4684415]
[1750731170799,2.02167492,2400.3,2400.0,8.6357515]
[1750731170998,0.83262,2400.3,2400.0,8.6357515]
[1750731171301,3.2078,2400.4,2400.1,3.3331]
[1750731171598,1.18947549,2400.3,2400.2,0.83264]
[1750731171898,1.18947549,2400.3,2400.1,4.16575]
[1750731172101,4.04037,2400.4,2400.1,4.16575]
[1750731172401,0.8325,2400.6,2400.3,0.83259]
[1750731172601,1.18958263,2400.5,2400.4,8.571]
[1750731172796,0.8325,2400.6,2400.3,0.83259]
[1750731172991,2.02220703,2400.5,2400.4,8.571]
[1750731173392,5.23000703,2400.5,2400.4,8.571]
[1750731173800,0.83257,2400.4,2400.3,8.571]
[1750731173999,0.83264,2400.2,2400.1,3.3331]
[1750731174405,2.02231703,2400.2,2400.1,3.3331]
[1750731174606,5.23011703,2400.2,2400.1,3.3331]
[1750731175406,5.23011703,2400.2,2400.1,2.2413]
[1750731175599,5.23011703,2400.2,2400.0,0.0637515]
[1750731175600,0.83267,2400.1,2400.0,0.0637515]
[1750731175800,3.41534703,2400.1,2400.0,1.5e-06]
[1750731176201,5.86383862,2400.1,2400.0,1.5e-06]
[1750731179312,3.41534703,2400.1,2400.0,1.5e-06]
[1750731180707,5.87562898,2400.1,2400.0,1.5e-06]
[1750731180905,3.41534703,2400.1,2400.0,1.5e-06]
[1750731181209,5.87555897,2400.1,2400.0,1.5e-06]
[1750731181409,3.41534703,2400.1,2400.0,1.5e-06]
[1750731181605,5.87551182,2400.1,2400.0,1.5e-06]
[1750731182604,3.41534703,2400.1,2400.0,1.5e-06]
[1750731183109,5.87603264,2400.1,2400.0,1.5e-06]
[1750731184213,3.41534703,2400.1,2400.0,1.5e-06]
[1750731188618,2.58267703,2400.1,2400.0,1.5e-06]
[1750731188919,3.41534703,2400.1,2400.0,1.5e-06]
[1750731189316,1.18967703,2400.1,2400.0,1.5e-06]
[1750731189614,2.02234703,2400.1,2400.0,1.5e-06]
[1750731190219,1.18967703,2400.1,2400.0,1.5e-06]
[1750731190416,1.18967703,2400.1,2400.0,0.8327115]
[1750731190913,1.18967703,2400.1,2400.0,2.1666115]
[1750731191217,1.18967703,2400.1,2400.0,0.8327115]
[1750731192214,1.18967703,2400.1,2400.0,1.5e-06]
[1750731192215,0.83267,2400.1,2400.0,1.5e-06]
[1750731192417,2.02234703,2400.1,2400.0,1.5e-06]
[1750731192612,1.18967703,2400.1,2400.0,1.5e-06]
[1750731193106,2.02234703,2400.1,2400.0,1.5e-06]
[1750731193712,1.18967703,2400.1,2400.0,0.8327115]
[1750731194122,1.18967703,2400.1,2400.0,1.5e-06]
[1750731195323,2.02234703,2400.1,2400.0,1.5e-06]
[1750731195715,1.18967703,2400.1,2400.0,0.8327115]
[1750731197114,1.18967703,2400.1,2400.0,2.2182115]
[1750731197422,1.18967703,2400.1,2400.0,1.3855015]
[1750731197618,1.18967703,2400.2,2400.0,2.2181915]
[1750731197817,2.02232703,2400.2,2400.0,1.5e-06]
[1750731198012,1.18967703,2400.1,2400.0,1.5e-06]
[1750731198212,2.02234703,2400.1,2400.0,1.5e-06]
[1750731198418,3.47624703,2400.1,2400.0,1.5e-06]
[1750731202026,2.02234703,2400.1,2400.0,1.5e-06]
[1750731203625,5.86883264,2400.1,2400.0,1.5e-06]
[1750731209726,8.40814703,2400.1,2400.0,1.5e-06]
[1750731210028,10.87328041,2400.1,2400.0,1.5e-06]
[1750731211532,8.40814703,2400.1,2400.0,1.5e-06]
[1750731212027,9.08214703,2400.1,2400.0,1.5e-06]
[1750731212228,9.08214703,2400.1,2399.2,3.2078]
[1750731212229,10.33121703,2400.1,2399.2,3.2078]
[1750731212429,0.83287,2399.6,2399.2,3.2078]
[1750731212622,1.18967703,2399.5,2399.2,3.2078]
[1750731212823,1.18967703,2399.5,2399.2,5.46198]
[1750731213329,1.18967703,2399.4,2399.2,4.629]
[1750731213725,3.2078,2399.7,2399.2,9.30770182]
[1750731213932,1.19143734,2399.6,2399.4,0.83291]
[1750731214130,1.19143734,2399.5,2399.4,0.83291]
[1750731214632,1.19143734,2399.5,2399.4,5.83291]
[1750731214834,3.2078,2400.0,2399.7,0.83278]
[1750731215034,1.19148809,2399.9,2399.8,8.76078]
[1750731215931,3.2078,2400.3,2400.0,0.0637515]
[1750731216127,1.1916873,2400.2,2400.0,0.0637515]
[1750731216332,1.1916873,2400.1,2400.0,2.2365615]
[1750731217131,1.1916873,2400.1,2400.0,1.4038515]
[1750731221141,1.1916873,2400.1,2400.0,2.2365615]
[1750731221438,2.0243673,2400.1,2400.0,7.9917515]
[1750731222233,1.1916873,2400.1,2400.0,7.9917515]
[1750731222633,1.1916873,2400.1,2400.0,8.8244615]
[1750731223839,3.2078,2400.3,2400.1,0.83265]
[1750731224039,1.19046248,2400.2,2400.1,0.83268]
[1750731224239,1.19046248,2400.2,2400.1,2.22898]
[1750731224441,1.19049646,2400.2,2400.0,8.8244415]
[1750731224642,0.6996,2400.5,2400.0,7.9917515]
[1750731224940,5.67282756,2400.9,2400.6,0.8325]
[1750731225138,5.67282756,2400.9,2400.8,0.83243]
[1750731225139,3.2078,2400.9,2400.8,0.83243]
[1750731225440,3.2078,2400.9,2400.8,8.75943]
[1750731225637,3.2078,2401.2,2401.0,0.83233]
[1750731225835,3.2078,2401.2,2401.0,0.83235]
[1750731226036,3.2078,2401.2,2401.1,0.83233]
[1750731226344,3.2078,2401.2,2401.0,0.83235]
[1750731226547,0.83226,2401.3,2401.0,0.83235]
[1750731226739,2.18785,2401.4,2401.1,0.83233]
[1750731227043,3.2078,2401.5,2401.2,8.75929]
[1750731227238,3.2078,2401.5,2401.3,0.83224]
[1750731228146,3.2078,2401.5,2401.2,8.75927]
[1750731228345,0.83228,2401.3,2400.9,0.83239]
[1750731228543,7.88650182,2401.2,2400.4,11.1348]
[1750731228743,3.2078,2400.8,2400.4,7.927]
[1750731229247,4.04024,2400.8,2400.4,7.927]
[1750731229442,0.83247,2400.7,2400.4,7.927]
[1750731229641,4.04025,2400.8,2400.4,7.927]
[1750731230347,0.83247,2400.7,2400.4,7.927]
[1750731230740,0.83248,2400.7,2400.4,7.927]
[1750731230940,4.04025,2400.8,2400.4,7.927]
[1750731231139,0.83251,2400.6,2400.4,7.927]
[1750731231543,0.83248,2400.7,2400.4,7.927]
[1750731231840,0.83251,2400.6,2400.4,7.927]
[1750731232246,0.83249,2400.7,2400.4,7.927]
[1750731233048,0.83251,2400.6,2400.4,7.927]
[1750731233446,3.2078,2400.8,2400.4,7.927]
[1750731233745,0.83252,2400.6,2400.4,7.927]
[1750731234638,2.21809,2400.7,2400.4,7.927]
[1750731234935,2.21807,2400.7,2400.4,7.927]
[1750731235139,3.2078,2400.8,2400.4,7.927]
[1750731235440,4.04026,2400.8,2400.4,9.2733]
[1750731235642,0.83249,2400.7,2400.4,9.2733]
[1750731235838,4.04025,2400.8,2400.4,10.10587]
[1750731236651,4.04025,2400.8,2400.4,14.78456182]
[1750731236848,0.83241,2400.9,2400.5,0.83251]
[1750731237046,3.2078,2401.1,2400.5,2.17881]
[1750731237248,0.83243,2400.9,2400.8,0.0637515]
[1750731237443,0.83243,2400.9,2400.8,7.9897515]
[1750731237752,0.8324,2400.9,2400.8,7.9897515]
[1750731238649,2.01509348,2400.9,2400.8,7.9897515]
[1750731239350,0.8324,2400.9,2400.8,7.9897515]
[1750731239646,8.26380872,2400.9,2400.2,3.2078]
[1750731239841,8.26380872,2400.9,2399.9,0.695]
[1750731239842,0.83261,2400.4,2400.3,7.925]
[1750731240841,3.2078,2400.5,2400.3,7.925]
[1750731240842,4.04036,2400.5,2400.3,7.925]
[1750731241651,0.83253,2400.6,2400.3,8.7576]
[1750731242248,6.83605,2400.8,2400.4,4.67870182]
[1750731242443,1.18382858,2400.7,2400.4,6.01210182]
[1750731242643,6.0036,2400.8,2400.5,3.95282]
[1750731242842,1.18422742,2400.7,2400.5,3.95282]
[1750731243047,2.01670902,2400.6,2400.5,3.1203]
[1750731243246,3.36370902,2400.6,2400.5,3.1203]
[1750731244854,1.18419902,2400.6,2400.5,3.1203]
[1750731245851,2.01670902,2400.6,2400.5,3.1203]
[1750731246043,3.44870902,2400.6,2400.5,3.1203]
[1750731250958,2.01670902,2400.6,2400.5,3.1203]
[1750731251158,1.18419902,2400.6,2400.5,3.1203]
[1750731251654,1.18419902,2400.6,2400.5,3.95284]
[1750731251851,4.04019,2401.0,2400.5,3.95284]
[1750731252052,4.04008,2401.3,2400.9,4.67870182]
[1750731252355,4.04008,2401.3,2401.0,7.691]
[1750731253462,3.2078,2401.3,2400.6,42.205]
[1750731253754,3.2078,2400.9,2400.5,3.1203]
[1750731253960,0.83251,2400.6,2400.5,3.1203]
[1750731254150,10.35152938,2400.6,2399.8,55.681]
[1750731254350,3.2078,2400.1,2399.8,55.681]
[1750731254658,0.83273,2400.0,2399.8,7.691]
[1750731254853,0.83275,2399.9,2399.8,7.691]
[1750731255056,0.83282,2399.7,2399.6,7.691]
[1750731255248,0.83289,2399.6,2399.4,7.691]
[1750731257258,0.83276,2399.9,2399.4,13.20261182]
[1750731257458,0.83282,2399.7,2399.4,7.691]
[1750731257859,0.83281,2399.8,2399.4,7.691]
[1750731258061,2.22581,2399.8,2399.4,7.691]
[1750731258464,0.83284,2399.7,2399.4,7.691]
[1750731258854,2.22581,2399.8,2399.4,7.691]
[1750731259469,2.22581,2399.8,2399.4,7.7547515]
[1750731259663,2.22581,2399.8,2399.4,8.5876715]
[1750731259864,2.22581,2399.8,2399.4,7.7547515]
[1750731260064,3.2078,2399.9,2399.7,0.83282]
[1750731260271,4.04057,2399.9,2399.5,5.51158182]
[1750731260567,3.2078,2399.9,2399.5,6.86348182]
[1750731260771,3.2078,2400.2,2399.8,5.51146182]
[1750731260965,0.83271,2400.1,2399.9,7.692]
[1750731261270,3.2078,2400.2,2399.9,8.52475]
[1750731261470,3.2078,2400.2,2399.9,8.52474]
[1750731261665,3.2078,2400.2,2400.0,0.83272]
[1750731261866,3.2078,2400.2,2400.1,0.83269]
[1750731262059,3.2078,2400.2,2399.9,9.0439]
[1750731262263,4.04048,2400.2,2399.9,9.0439]
[1750731262772,3.2078,2400.2,2399.9,9.87665]
[1750731263069,4.04046,2400.2,2399.9,9.87665]
[1750731263262,3.2078,2400.2,2399.9,9.87665]
[1750731263461,0.83266,2400.2,2399.9,9.0439]
[1750731263773,6.0457,2400.5,2399.9,9.0439]
[1750731263971,2.01209702,2400.4,2400.0,0.83269]
[1750731264166,2.01210702,2400.3,2400.0,0.83269]
[1750731264366,0.83266,2400.2,2399.9,9.87663]
[1750731264873,0.83272,2400.0,2399.9,7.692]
[1750731265072,0.83277,2399.9,2399.6,0.83286]
[1750731265264,0.83277,2399.9,2399.7,7.692]
[1750731265466,0.83276,2399.9,2399.7,7.692]
[1750731266173,0.83278,2399.9,2399.7,7.692]
[1750731266773,0.8328,2399.8,2399.6,7.692]
[1750731267470,4.04058,2399.9,2399.6,7.692]
[1750731267973,4.04058,2399.9,2399.6,8.52486]
[1750731268770,0.8328,2399.8,2399.6,7.692]
[1750731268970,0.8328,2399.8,2399.6,8.52485]
[1750731269174,3.2078,2399.9,2399.6,8.52485]
[1750731269175,4.04058,2399.9,2399.6,8.52485]
[1750731269373,4.04058,2399.9,2399.7,0.83282]
[1750731269674,3.2078,2400.2,2399.8,5.51148182]
[1750731269973,1.17894939,2400.1,2399.7,0.83281]
[1750731270174,3.2078,2400.2,2399.7,0.83281]
[1750731270377,0.83277,2399.9,2399.7,0.83281]
[1750731270572,0.83277,2399.9,2399.6,14.56424182]
[1750731270768,0.83277,2399.9,2399.7,7.693]
[1750731270769,3.2078,2399.9,2399.7,7.693]
[1750731270972,0.83279,2399.8,2399.7,7.693]
[1750731272069,4.04057,2399.9,2399.7,7.693]
[1750731274479,0.83279,2399.8,2399.7,7.693]
[1750731274679,0.83284,2399.7,2399.4,4.04071]
[1750731274879,0.83284,2399.7,2399.5,7.682]
[1750731275178,0.83286,2399.6,2399.5,7.682]
[1750731277574,5.21991514,2399.6,2399.5,7.682]
[1750731277975,0.83292,2399.5,2399.3,9.4592]
[1750731278179,0.83293,2399.4,2399.3,1.7762]
[1750731278375,2.01199892,2399.4,2399.3,1.7762]
[1750731278680,0.833,2399.2,2399.1,7.683]
[1750731278877,4.0408,2399.2,2399.1,7.683]
[1750731279577,3.2078,2399.2,2399.1,13.19473182]
[1750731281475,3.2078,2399.2,2399.1,7.683]
[1750731281676,3.2078,2399.2,2399.1,8.51603]
[1750731281876,3.2078,2399.2,2399.1,7.683]
[1750731282383,3.2078,2399.6,2399.1,9.0102]
[1750731282675,0.833,2399.2,2399.1,7.683]
[1750731282876,0.83299,2399.3,2399.1,7.683]
[1750731283177,3.2078,2399.6,2399.1,7.683]
[1750731283178,0.83295,2399.4,2399.1,7.683]
[1750731283378,0.83295,2399.4,2399.1,8.51601]
[1750731283379,1.18157274,2399.3,2399.1,8.51601]
[1750731283576,3.2078,2399.6,2399.1,7.683]
[1750731283776,2.8177,2399.8,2399.1,7.683]
[1750731283777,2.23461,2399.8,2399.7,0.0637515]
[1750731283981,1.18173367,2399.8,2399.7,0.0637515]
[1750731284477,1.18173367,2399.8,2399.7,0.8965815]
[1750731286184,0.83269,2400.1,2399.9,0.83274]
[1750731286481,1.18189748,2400.0,2399.9,0.83274]
[1750731286682,1.18189748,2400.0,2399.9,8.51574]
[1750731287679,3.2078,2400.2,2400.1,0.83269]
[1750731287881,4.3894096,2400.2,2400.1,5.51139182]
[1750731288277,3.2078,2400.2,2400.1,5.51139182]
[1750731288479,3.2078,2400.2,2400.1,6.85569182]
[1750731288877,3.2078,2400.6,2400.1,6.02300182]
[1750731289083,2.01391207,2400.5,2400.2,0.83264]
[1750731289384,1.18133207,2400.4,2400.3,7.683]
[1750731290283,1.18133207,2400.4,2400.3,8.51562]
[1750731291386,1.18133207,2400.4,2400.3,0.83262]
[1750731291680,1.18133207,2400.4,2400.3,8.51562]
[1750731291986,3.2078,2400.6,2400.5,0.83255]
[1750731292279,3.2078,2400.6,2400.5,5.51125182]
[1750731292478,3.2078,2401.0,2400.9,0.83238]
[1750731292988,3.2078,2401.0,2400.8,8.51442]
[1750731293283,3.2078,2401.0,2400.8,7.682]
[1750731293485,4.5825,2401.0,2400.8,7.682]
[1750731293787,4.5825,2401.0,2400.8,8.51444]
[1750731293989,4.5825,2401.0,2400.8,7.682]
[1750731294487,0.83241,2400.9,2400.8,7.682]
[1750731294683,0.83244,2400.9,2400.5,11.72233]
[1750731294880,1.3747,2400.8,2400.5,11.72233]
[1750731295076,0.8325,2400.7,2400.5,10.8898]
[1750731295281,2.0904,2400.8,2400.5,10.8888]
[1750731295481,1.3747,2400.7,2400.5,11.72134]
[1750731296187,1.3747,2400.7,2400.5,10.8888]
[1750731296488,0.83251,2400.6,2400.5,10.8888]
[1750731296686,2.19491,2400.6,2400.5,3.2078]
[1750731296875,2.19491,2400.6,2400.2,48.0547515]
[1750731296876,0.83262,2400.3,2400.2,0.0637515]
[1750731297484,2.92062,2400.3,2400.2,0.0637515]
[1750731299081,7.088,2400.3,2399.6,8.51383]
[1750731299281,0.83275,2400.0,2399.6,8.51383]
[1750731299783,1.3913,2399.9,2399.6,8.51383]
[1750731299984,1.3913,2399.9,2399.7,0.83282]
[1750731300284,0.83268,2400.2,2399.8,0.83278]
[1750731300486,2.1169,2400.3,2399.7,0.83281]
[1750731300785,1.3913,2400.1,2399.5,3.2078]
[1750731300982,0.83284,2399.7,2399.6,7.681]
[1750731301187,0.83286,2399.6,2399.5,7.682]
[1750731301389,1.3913,2399.6,2399.2,3.2078]
[1750731301587,1.3913,2399.6,2399.5,0.83289]
[1750731301777,3.2078,2399.9,2399.5,4.67870182]
[1750731301986,3.2078,2399.9,2399.6,0.83285]
[1750731302185,3.2078,2399.9,2399.7,0.83282]
[1750731302384,3.2078,2399.9,2399.6,0.83284]
[1750731302586,3.2078,2399.9,2399.7,0.83281]
[1750731302784,3.2078,2399.9,2399.6,0.83284]
[1750731303086,4.04056,2399.9,2399.6,0.83284]
[1750731303289,0.83276,2399.9,2399.6,0.83284]
[1750731303489,0.83274,2400.0,2399.7,0.83282]
[1750731303689,0.83273,2400.0,2399.7,0.83281]
[1750731303884,0.83273,2400.0,2399.8,7.656]
[1750731304192,0.83276,2399.9,2399.8,7.7197515]
[1750731304390,0.83274,2400.0,2399.8,7.7197515]
[1750731304590,0.83276,2399.9,2399.8,7.7197515]
[1750731305088,0.83274,2400.0,2399.8,7.7197515]
[1750731305292,2.22401,2400.1,2399.8,8.5525215]
[1750731305591,0.83273,2400.0,2399.8,7.7197515]
[1750731306390,0.6581,2400.2,2399.8,12.39845332]
[1750731306590,0.7228,2400.3,2400.1,0.83267]
[1750731306995,0.7228,2400.3,2400.2,8.48865]
[1750731307297,5.41107,2400.5,2400.2,8.48865]
[1750731307592,4.5785,2400.5,2400.2,7.656]
[1750731307789,0.6938,2400.6,2400.4,0.83256]
[1750731307981,1.52632,2400.6,2400.3,2.2638]
[1750731309392,1.52632,2400.6,2400.3,0.8326]
[1750731309790,0.83255,2400.5,2400.2,35.74363]
[1750731309991,0.83255,2400.5,2400.2,35.74364]
[1750731310296,0.83259,2400.4,2400.2,35.74364]
[1750731310592,0.6938,2400.6,2400.1,10.8638]
[1750731310593,0.83265,2400.2,2400.1,10.8638]
[1750731311486,1.4009,2400.3,2400.1,11.69647]
[1750731311686,3.9016,2400.6,2400.2,0.83264]
[1750731311988,1.17250529,2400.5,2400.3,0.8326]
[1750731312190,6.15073,2400.6,2400.3,0.8326]
[1750731312395,6.15073,2400.6,2400.4,0.83258]
[1750731312596,0.83235,2401.1,2400.8,0.83243]
[1750731312787,0.83232,2401.2,2400.9,0.8324]
[1750731313097,1.17321354,2401.1,2400.9,8.4884]
[1750731313298,0.83232,2401.2,2400.9,8.4884]
[1750731313598,0.83237,2401.0,2400.8,3.2078]
[1750731313893,0.83236,2401.1,2400.9,7.656]
[1750731314097,1.17328024,2401.0,2400.9,7.656]
[1750731314795,1.17328024,2401.0,2400.9,8.48841]
[1750731314996,1.4166,2401.3,2401.1,0.83234]
[1750731315191,1.17331791,2401.2,2401.1,0.83234]
[1750731315394,1.4134,2401.4,2401.2,0.8323]
[1750731315690,1.17318619,2401.3,2401.1,0.83231]
[1750731315892,1.4134,2401.4,2401.1,0.83231]
[1750731316096,1.1731821,2401.3,2401.2,0.8323]
[1750731316295,1.4134,2401.4,2401.3,0.83227]
[1750731316496,2.58568049,2401.4,2401.2,0.83229]
[1750731316695,3.2078,2401.5,2401.2,0.83229]
[1750731316897,1.17236668,2401.4,2401.2,0.83227]
[1750731317195,3.2078,2401.5,2401.4,0.83224]
[1750731317393,6.85182,2401.8,2401.5,0.8322]
[1750731317589,0.83211,2401.8,2401.6,3.2078]
[1750731317794,0.83211,2401.8,2401.4,7.655]
[1750731317795,1.1719058,2401.7,2401.4,7.655]
[1750731317999,2.0040958,2401.6,2401.4,7.655]
[1750731318197,1.1719058,2401.5,2401.4,7.655]
[1750731318397,1.1719058,2401.5,2401.3,48.81427]
[1750731318398,2.5406058,2401.5,2401.3,47.982]
[1750731318599,1.3687,2401.5,2401.3,55.637]
[1750731319401,0.6721,2401.6,2401.3,56.46926]
[1750731319599,0.6721,2401.6,2401.4,0.83223]
[1750731320003,0.6721,2401.6,2401.5,0.8322]
[1750731320303,3.2078,2401.8,2401.6,0.83214]
[1750731320605,3.2078,2401.8,2401.7,8.48613]
[1750731320802,3.2078,2401.8,2401.7,7.654]
[1750731322903,0.83222,2401.5,2401.3,47.982]
[1750731323101,1.4306,2401.7,2401.4,7.653]
[1750731323303,1.4306,2401.7,2401.3,47.982]
[1750731323503,1.4306,2401.7,2401.3,7.653]
[1750731323802,0.83227,2401.3,2401.2,0.0637515]
[1750731324305,1.99990899,2401.3,2401.2,0.0637515]
[1750731324508,6.99990899,2401.3,2401.2,0.0637515]
[1750731324700,8.40000899,2401.3,2401.2,0.0637515]
[1750731325005,0.83241,2400.9,2400.6,58.8308]
[1750731325200,0.83241,2400.9,2400.6,59.66331]
[1750731325395,3.2078,2401.2,2400.6,58.8308]
[1750731325599,0.83248,2400.7,2400.3,8.71909182]
[1750731325801,0.83248,2400.7,2400.4,7.653]
[1750731326707,3.2078,2400.9,2400.4,7.653]
[1750731326905,0.8324,2401.0,2400.6,8.71901182]
[1750731327106,0.83236,2401.1,2400.7,0.83247]
[1750731327302,2.27046,2401.1,2400.7,0.83247]
[1750731327704,1.4381,2401.1,2400.8,0.83244]
[1750731328004,3.2078,2400.9,2400.3,10.8608]
[1750731328203,1.4381,2400.8,2400.3,3.2078]
[1750731328404,0.83253,2400.6,2400.3,10.8608]
[1750731328807,1.4381,2400.6,2400.4,0.83258]
[1750731329110,0.83257,2400.5,2400.3,10.8608]
[1750731329609,0.83256,2400.5,2400.3,10.8608]
[1750731331110,0.83253,2400.6,2400.3,11.69341]
[1750731331310,1.54709,2400.7,2400.4,0.83257]
[1750731331711,0.83252,2400.6,2400.3,11.6934]
[1750731332309,1.5471,2400.7,2400.3,11.6934]
[1750731333107,1.5471,2400.7,2400.4,0.83257]
[1750731334905,0.7146,2400.7,2400.3,15.60325332]
[1750731335110,0.6696,2401.0,2400.4,1.3134]
[1750731335314,0.83251,2400.7,2400.4,0.83257]
[1750731336209,4.5323,2400.9,2400.3,3.2715515]
[1750731336508,0.83254,2400.6,2400.4,7.62]
[1750731337407,0.8325,2400.7,2400.4,8.45258]
[1750731338410,4.5323,2400.9,2400.4,7.62]
[1750731338711,0.83252,2400.6,2400.4,7.62]
[1750731340510,0.83258,2400.4,2400.3,0.0637515]
[1750731340710,0.83282,2399.8,2399.5,7.621]
[1750731340900,0.83283,2399.7,2399.5,7.621]
[1750731341412,0.83284,2399.7,2399.5,7.621]
[1750731341808,1.3647,2399.9,2399.5,7.621]
[1750731342004,0.83276,2399.9,2399.5,5.51157182]
[1750731342211,0.83276,2399.9,2399.5,14.48067182]
[1750731343420,3.2078,2400.0,2399.5,14.48067182]
[1750731343421,0.8328,2399.8,2399.5,14.48067182]
[1750731343713,3.2078,2400.0,2399.5,13.64780182]
[1750731343914,0.83285,2399.7,2399.5,13.64780182]
[1750731344215,0.83285,2399.7,2399.5,12.29970182]
[1750731344714,0.8328,2399.8,2399.5,13.13258182]
[1750731344911,0.83277,2399.9,2399.6,0.83284]
[1750731345111,0.83277,2399.9,2399.6,2.28674]
[1750731345610,0.83276,2399.9,2399.7,0.83281]
[1750731345813,4.04054,2400.0,2399.7,0.83281]
[1750731346015,4.04054,2400.0,2399.6,1.4539]
[1750731346016,3.2078,2400.0,2399.8,4.67870182]
[1750731346213,3.2078,2400.0,2399.9,8.45475]
[1750731346415,3.2078,2400.0,2399.9,10.58695]
[1750731346613,4.0404,2400.4,2400.1,0.83266]
[1750731346815,4.0404,2400.4,2400.3,0.0637515]
[1750731347113,3.2078,2400.4,2400.3,7.6857515]
[1750731347313,4.04038,2400.4,2400.3,7.6857515]
[1750731348216,0.83258,2400.4,2400.3,7.6857515]
[1750731348904,0.83256,2400.5,2400.3,7.6857515]
[1750731349610,1.49763,2400.6,2400.3,8.5183615]
[1750731349811,0.83258,2400.4,2400.3,7.622]
[1750731350410,0.83265,2400.2,2400.1,3.2078]
[1750731351010,0.83276,2399.9,2399.7,10.8298]
[1750731351208,0.83279,2399.8,2399.7,10.8298]
[1750731351418,0.83279,2399.8,2399.7,3.2078]
[1750731352108,0.83282,2399.7,2399.6,0.0637515]
[1750731352315,3.39199281,2399.7,2399.6,0.0637515]
[1750731352710,1.16947281,2399.7,2399.6,0.0637515]
[1750731353020,3.2078,2399.8,2399.6,0.8966015]
[1750731353419,4.04061,2399.8,2399.6,0.0637515]
[1750731353617,3.2078,2399.8,2399.6,0.8965815]
[1750731354717,0.83277,2399.9,2399.6,4.1043915]
[1750731355722,0.8328,2399.8,2399.6,3.2715515]
[1750731356021,3.2078,2400.1,2399.6,5.4494915]
[1750731356217,0.83275,2399.9,2399.6,5.4494915]
[1750731356418,1.17080176,2399.8,2399.6,5.4494915]
[1750731356619,0.83275,2399.9,2399.6,5.4494915]
[1750731356814,1.17078844,2399.8,2399.6,5.4494915]
[1750731357021,0.83277,2399.9,2399.6,5.4495015]
[1750731357216,1.17079281,2399.8,2399.6,5.4495015]
[1750731357423,3.2078,2400.1,2399.6,3.2715515]
[1750731357620,0.83282,2399.7,2399.6,3.2715515]
[1750731358324,2.00423051,2399.7,2399.6,10.8945515]
[1750731358523,2.00423051,2399.7,2399.6,7.6867515]
[1750731358920,2.00415608,2399.7,2399.6,7.6867515]
[1750731359824,2.00415608,2399.7,2399.6,0.0637515]
[1750731360524,4.06395608,2399.7,2399.6,0.0637515]
[1750731360722,3.23113608,2399.7,2399.6,0.0637515]
[1750731361223,1.84203608,2399.7,2399.6,0.0637515]
[1750731361426,2.67485608,2399.7,2399.6,0.0637515]
[1750731362930,0.83297,2399.3,2399.2,7.623]
[1750731363324,0.83297,2399.3,2399.0,4.04085]
[1750731363325,0.83303,2399.1,2399.0,3.2078]
[1750731363524,0.83303,2399.1,2399.0,10.8308]
[1750731364023,0.83301,2399.2,2399.0,10.8308]
[1750731364223,0.83301,2399.2,2399.0,11.66386]
[1750731364421,0.7034,2399.6,2399.3,0.83294]
[1750731364628,2.00381129,2399.5,2399.1,6.93552182]
[1750731364829,0.83315,2398.8,2398.2,7.624]
[1750731365025,3.2078,2398.9,2398.2,8.45732]
[1750731365232,0.8332,2398.7,2398.3,0.83329]
[1750731365425,2.805,2398.8,2398.3,4.67870182]
[1750731365624,2.1016,2399.1,2398.6,4.67870182]
[1750731365820,3.2078,2399.2,2399.1,0.83303]
[1750731366027,3.2078,2399.2,2399.1,8.41803]
[1750731366332,3.2078,2399.2,2399.1,13.41803]
[1750731367730,3.2078,2399.5,2399.1,12.585]
[1750731367940,3.2078,2399.5,2399.4,0.83293]
[1750731369044,3.2078,2399.5,2399.1,8.9722]
[1750731369045,2.0183,2399.7,2399.6,0.0637515]
[1750731369242,4.02279644,2399.7,2399.6,0.0637515]
[1750731369438,3.18997644,2399.7,2399.6,0.0637515]
[1750731370243,1.17167644,2399.7,2399.6,0.8966115]
[1750731370444,3.8962,2399.8,2399.7,0.83282]
[1750731370744,4.38050788,2399.8,2399.7,0.83282]
[1750731371346,4.38050788,2399.8,2399.6,0.8965915]
[1750731371541,3.2078,2399.8,2399.7,0.83282]
[1750731371743,4.38054719,2399.8,2399.7,0.83282]
[1750731373150,3.2078,2399.4,2399.0,0.83307]
[1750731373341,1.17274719,2399.3,2399.1,0.83301]
[1750731373542,4.04074,2399.4,2399.1,0.83302]